bitfinex/quotes_ETHUSD_20250603
["timestamp","ask_amount","ask_price","bid_price","bid_amount"]
[1748962396707,8.647,2642.6,2641.7,4.19786553]
[1748962396909,1.1284,2642.5,2641.7,0.41243406]
[1748962397203,1.1284,2642.5,2641.6,3.78549707]
[1748962397453,1.1284,2642.5,2641.4,0.33559463]
[1748962397751,1.1357,2642.4,2641.5,3.78564995]
[1748962398049,1.1357,2642.4,2641.4,3.78584126]
[1748962398203,1.1357,2642.4,2641.5,3.78565316]
[1748962398525,1.1357,2642.4,2641.6,3.7855317]
[1748962398702,1.1357,2642.4,2641.5,0.79546314]
[1748962398901,1.1357,2642.4,2641.5,4.58112408]
[1748962399102,1.1357,2642.4,2641.5,0.79546314]
[1748962399913,1.1357,2642.4,2641.5,0.37392297]
[1748962400125,1.1625,2643.3,2642.3,3.78458161]
[1748962400325,1.1625,2643.3,2642.2,8.34873226]
[1748962400326,1.1625,2643.3,2642.5,3.7842698]
[1748962400539,1.1625,2643.3,2642.0,8.0]
[1748962400702,1.1625,2643.3,2642.0,3.78497628]
[1748962400903,1.1625,2643.3,2642.3,3.78458161]
[1748962401125,1.1625,2643.3,2642.4,3.78435592]
[1748962401457,1.1625,2643.3,2642.2,8.0]
[1748962401609,1.915,2643.2,2642.3,4.16769568]
[1748962401808,1.915,2643.2,2642.3,3.78456889]
[1748962402017,0.98435,2643.2,2642.2,16.34873226]
[1748962402229,1.1625,2643.3,2642.7,3.78393944]
[1748962402537,1.1625,2643.3,2642.5,3.78428567]
[1748962402939,1.1625,2643.3,2642.7,3.78394898]
[1748962403458,1.1625,2643.3,2642.8,3.78382317]
[1748962403603,1.1625,2643.3,2642.6,3.78413246]
[1748962403604,1.1625,2643.3,2642.6,3.78405191]
[1748962403808,1.1625,2643.3,2642.8,3.78383309]
[1748962404010,1.1625,2643.3,2642.4,3.78440726]
[1748962404310,1.1625,2643.3,2642.4,8.0]
[1748962404510,1.1625,2643.3,2642.4,7.99734]
[1748962405180,1.1625,2643.3,2641.8,1.915]
[1748962405321,1.1864,2643.1,2642.1,3.78481058]
[1748962405642,9.0864,2643.1,2642.1,3.78484706]
[1748962405820,1.1858,2643.0,2642.1,3.78484706]
[1748962406545,1.915,2642.9,2642.0,8.38167678]
[1748962406844,1.915,2642.9,2642.3,3.78447639]
[1748962407144,1.1858,2643.0,2642.2,8.34873226]
[1748962407347,1.1858,2643.0,2642.0,3.78496798]
[1748962407523,1.1858,2643.0,2641.9,16.93135312]
[1748962407524,1.1858,2643.0,2641.9,8.0]
[1748962407909,3.1008,2643.0,2642.3,3.78455917]
[1748962408245,1.1858,2643.0,2642.4,3.78429953]
[1748962408449,4.040155,2643.0,2642.3,3.78451502]
[1748962408618,4.040155,2643.0,2642.2,3.7846284]
[1748962408821,2.125155,2643.0,2642.5,3.78428361]
[1748962409147,1.1858,2643.0,2642.7,3.78392854]
[1748962409344,1.1858,2643.0,2642.4,3.78433751]
[1748962409525,1.1858,2643.0,2642.9,3.78372242]
[1748962409728,7.9,2643.8,2642.9,3.78372242]
[1748962409917,1.1033,2643.7,2643.0,0.75675681]
[1748962410122,1.1033,2643.7,2643.6,3.78272053]
[1748962410449,0.02,2643.9,2643.8,3.78243437]
[1748962410666,0.02,2643.9,2643.7,3.78256146]
[1748962410867,0.02,2643.9,2643.2,0.58262086]
[1748962411015,0.02,2643.9,2642.2,4.24810642]
[1748962411016,1.1538,2643.8,2643.5,3.7828433]
[1748962411344,1.1538,2643.8,2643.1,3.78343611]
[1748962411345,0.02,2643.9,2643.6,3.78271159]
[1748962411545,0.02,2643.9,2643.1,0.58262086]
[1748962411721,0.02,2643.9,2643.2,8.0]
[1748962412040,0.02,2643.9,2643.7,3.78255758]
[1748962412246,0.02,2643.9,2643.1,8.34873226]
[1748962412407,0.02,2643.9,2643.7,3.78256075]
[1748962412816,0.02,2643.9,2643.6,3.78265309]
[1748962413233,0.02,2643.9,2643.5,3.78280059]
[1748962413446,0.02,2643.9,2643.3,8.34873226]
[1748962413618,0.02,2643.9,2643.8,3.78243437]
[1748962413818,0.02,2643.9,2643.8,4.53893388]
[1748962414654,0.02,2643.9,2643.4,8.0]
[1748962414822,0.02,2643.9,2643.3,3.78313443]
[1748962415019,0.02,2643.9,2643.2,0.58262086]
[1748962415020,1.1286,2643.9,2643.2,3.78324941]
[1748962415350,1.1286,2643.9,2643.2,3.78319954]
[1748962415521,1.1286,2643.9,2643.3,3.78305093]
[1748962415720,1.43696,2643.9,2643.3,3.78314985]
[1748962415922,1.1286,2643.9,2643.5,3.78276795]
[1748962416151,1.1286,2643.9,2643.6,3.78269545]
[1748962416353,1.1286,2643.9,2642.9,0.37337102]
[1748962416721,1.1286,2643.9,2642.7,3.78396182]
[1748962417054,1.1286,2643.9,2643.2,3.78321923]
[1748962417255,1.1286,2643.9,2643.2,0.75666728]
[1748962417461,1.1286,2643.9,2643.8,3.78243437]
[1748962418231,0.02,2643.9,2643.8,3.78243437]
[1748962418681,0.02,2643.9,2643.6,3.78263489]
[1748962418989,0.02,2643.9,2643.7,3.78257395]
[1748962419122,0.02,2643.9,2643.8,3.78243437]
[1748962419561,0.02,2643.9,2643.6,3.78268765]
[1748962419562,0.02,2643.9,2643.6,3.78271677]
[1748962419764,0.02,2643.9,2643.3,3.78314985]
[1748962419938,0.02,2643.9,2643.4,4.44488489]
[1748962420273,0.02,2643.9,2643.7,3.78247437]
[1748962420562,0.02,2643.9,2643.5,3.78272667]
[1748962420563,0.02,2643.9,2643.8,3.78243437]
[1748962422460,0.02,2643.9,2643.7,3.78249825]
[1748962422666,0.02,2643.9,2643.6,3.78264577]
[1748962422866,1.1658,2643.8,2643.4,3.78290962]
[1748962423159,1.1658,2643.8,2643.5,3.78284155]
[1748962423366,1.1658,2643.8,2643.6,3.78270756]
[1748962423566,1.1658,2643.8,2643.7,3.78257744]
[1748962424483,0.02,2644.9,2643.7,3.78257744]
[1748962424484,0.02,2644.9,2644.8,3.78100423]
[1748962425045,0.02,2644.9,2644.5,3.78139179]
[1748962425251,0.02,2644.9,2643.7,9.65526144]
[1748962425252,0.02,2644.9,2643.9,8.0]
[1748962425556,0.02,2644.9,2644.8,3.78100423]
[1748962427295,0.02,2644.9,2644.7,3.78113231]
[1748962427297,0.02,2644.9,2644.7,3.78109864]
[1748962427582,0.02,2644.9,2644.4,3.78157616]
[1748962427808,0.02,2644.9,2644.8,3.78100423]
[1748962428350,0.02,2644.9,2644.7,3.78114356]
[1748962428796,0.02,2644.9,2644.3,0.3789445]
[1748962428948,0.02,2644.9,2644.7,3.78105468]
[1748962429148,0.02,2644.9,2643.9,4.14114416]
[1748962429149,1.1428,2644.8,2643.9,3.78216228]
[1748962429364,1.1428,2644.8,2644.0,3.78214826]
[1748962429690,1.1428,2644.8,2644.2,3.78186218]
[1748962430097,1.1428,2644.8,2644.3,3.7817067]
[1748962430247,1.1428,2644.8,2644.5,3.78141402]
[1748962430455,1.1428,2644.8,2644.1,3.78188229]
[1748962430692,1.1428,2644.8,2644.2,3.78185866]
[1748962430693,1.1933,2644.7,2644.2,3.78185866]
[1748962430871,1.1933,2644.6,2643.4,3.78300673]
[1748962431155,1.1933,2644.6,2643.8,3.78232799]
[1748962431463,1.1933,2644.6,2643.7,3.78253]
[1748962431693,1.1933,2644.6,2643.8,3.78242495]
[1748962431931,1.1486,2644.4,2643.7,3.78255721]
[1748962432131,1.1486,2644.4,2643.5,3.78280918]
[1748962432132,1.1486,2644.4,2643.3,3.78309688]
[1748962432324,1.1486,2644.4,2643.2,0.30144734]
[1748962432325,1.1486,2644.4,2643.5,3.78275529]
[1748962432530,1.1486,2644.4,2643.5,3.78274817]
[1748962432830,1.1486,2644.4,2643.7,3.78255754]
[1748962433026,1.1589,2644.2,2643.6,3.78266733]
[1748962433321,1.1589,2644.2,2643.0,3.78349939]
[1748962433529,1.1589,2644.2,2643.2,3.78329297]
[1748962433698,1.955,2644.1,2643.6,3.78264937]
[1748962434437,1.955,2644.1,2643.8,3.78231909]
[1748962434628,1.955,2644.1,2643.7,3.78251044]
[1748962435340,1.955,2644.1,2643.8,3.78242184]
[1748962435501,1.955,2644.1,2643.7,3.78248671]
[1748962435831,2.94729,2644.1,2643.7,3.78248671]
[1748962435987,2.94729,2644.1,2643.1,4.08208838]
[1748962436188,0.31178,2644.8,2643.5,0.55]
[1748962436189,1.1384,2644.6,2643.5,0.55]
[1748962436392,1.1384,2644.6,2644.5,3.78143316]
[1748962437115,1.1384,2644.6,2644.4,3.78154358]
[1748962437328,1.1384,2644.6,2644.5,3.78143316]
[1748962439099,1.1384,2644.6,2644.4,3.78156731]
[1748962439100,1.1384,2644.6,2644.3,3.78161408]
[1748962439311,1.1384,2644.6,2644.2,3.78182711]
[1748962439532,1.1384,2644.6,2644.5,3.78143316]
[1748962440404,1.1384,2644.6,2644.2,3.67607216]
[1748962440604,1.2633,2644.9,2644.5,3.78143316]
[1748962440837,1.2633,2644.9,2644.2,4.04367938]
[1748962440838,0.02,2644.9,2644.8,3.78100423]
[1748962442420,0.02,2644.9,2644.8,12.12973649]
[1748962442939,0.02,2644.9,2644.8,12.18103649]
[1748962443302,0.02,2644.9,2644.8,12.73103649]
[1748962443513,1.1524,2645.8,2644.8,0.0513]
[1748962443731,1.1524,2645.8,2645.5,3.77986403]
[1748962443944,1.1524,2645.8,2645.4,3.78002346]
[1748962444162,1.1524,2645.8,2645.6,3.77974826]
[1748962444410,1.1524,2645.8,2645.0,3.78071833]
[1748962444727,1.1524,2645.8,2645.7,3.77971803]
[1748962445052,1.1524,2645.8,2645.4,3.78009725]
[1748962445732,1.1524,2645.8,2644.7,15.14173226]
[1748962445733,1.1524,2645.8,2645.3,3.78021145]
[1748962445933,1.1524,2645.8,2644.4,8.98555762]
[1748962446137,1.1524,2645.8,2644.4,0.98768788]
[1748962446336,1.97,2645.7,2644.4,0.98768788]
[1748962446541,1.97,2645.7,2644.2,0.37832117]
[1748962446542,1.225,2645.6,2644.2,0.37832117]
[1748962446748,1.225,2645.6,2644.2,3.78181316]
[1748962446948,1.225,2645.6,2644.4,3.78156201]
[1748962447134,1.225,2645.6,2643.7,8.40003226]
[1748962447312,1.225,2645.6,2644.4,3.7815082]
[1748962447518,1.225,2645.6,2643.3,0.58552536]
[1748962447519,1.1679,2645.0,2643.3,0.58552536]
[1748962447794,1.1679,2644.6,2643.2,3.78321411]
[1748962447963,1.1679,2644.6,2643.7,3.78245557]
[1748962448260,3.1379,2644.6,2643.3,12.13188211]
[1748962448558,1.1679,2644.6,2643.7,3.78246171]
[1748962448755,1.1679,2644.6,2644.4,3.78157391]
[1748962448964,1.1679,2644.6,2643.9,3.78229131]
[1748962449123,1.1679,2644.6,2643.8,0.37824617]
[1748962449124,1.1679,2644.6,2644.5,3.78143316]
[1748962449526,13.604,2645.1,2644.5,3.78134278]
[1748962449527,1.2122,2645.0,2644.5,3.78134278]
[1748962449818,1.2122,2645.0,2644.7,3.78112464]
[1748962450141,1.87518897,2645.0,2644.0,3.78202515]
[1748962450355,1.87518897,2645.0,2644.2,3.78182529]
[1748962450585,1.2122,2645.0,2644.7,3.78110009]
[1748962450790,1.2122,2645.0,2643.9,0.55]
[1748962450992,1.2122,2645.0,2644.8,3.78088614]
[1748962451183,1.2122,2645.0,2644.8,3.78096154]
[1748962451505,1.97,2645.4,2645.0,3.78059442]
[1748962451663,1.48423518,2645.3,2645.0,3.78059442]
[1748962451848,1.48423518,2645.3,2644.8,3.78087606]
[1748962452292,1.48423518,2645.3,2644.8,3.78100314]
[1748962452588,1.48423518,2645.3,2644.0,0.63682536]
[1748962452789,1.48423518,2645.3,2644.0,3.83339876]
[1748962453109,1.97,2645.4,2644.2,3.78181372]
[1748962453110,1.221,2645.1,2644.2,3.78181372]
[1748962453279,1.221,2645.1,2644.1,3.78191073]
[1748962453280,1.221,2645.1,2644.0,0.38422159]
[1748962453588,8.793,2645.0,2644.6,8.0]
[1748962453790,8.793,2645.0,2644.5,8.0]
[1748962454185,1.221,2645.1,2645.0,8.0]
[1748962454369,1.221,2645.1,2644.8,3.78098526]
[1748962454684,1.221,2645.1,2644.7,3.7811386]
[1748962455187,1.221,2645.1,2644.5,8.0]
[1748962455390,1.1758,2645.8,2644.7,3.78108893]
[1748962455551,1.1758,2645.8,2645.2,3.78032808]
[1748962455878,1.1758,2645.8,2645.3,3.78020948]
[1748962456348,1.1758,2645.8,2644.6,12.15852821]
[1748962456554,1.1758,2645.8,2645.1,3.78046172]
[1748962456873,1.1758,2645.8,2644.8,3.78099298]
[1748962457075,1.1758,2645.8,2645.3,3.78027824]
[1748962457273,1.1758,2645.8,2645.2,3.78037361]
[1748962457751,1.1758,2645.8,2644.7,10.59885635]
[1748962457958,1.97,2645.7,2645.2,3.78029646]
[1748962458163,1.97,2645.7,2644.7,10.59883308]
[1748962458396,1.97,2645.7,2644.9,3.7807965]
[1748962458397,1.1521,2645.6,2644.9,3.7807965]
[1748962458575,1.1521,2645.6,2644.6,4.15859728]
[1748962458891,1.1521,2645.6,2645.2,3.78042295]
[1748962459100,0.31221,2645.5,2645.2,3.78042295]
[1748962459460,0.31221,2645.5,2645.1,3.78051009]
[1748962459659,1.1521,2645.4,2644.9,3.78075862]
[1748962459917,1.1521,2645.4,2644.6,8.38485072]
[1748962460062,1.1521,2645.4,2644.9,3.78074308]
[1748962460517,1.1521,2645.4,2644.3,3.78171916]
[1748962460696,1.1521,2645.4,2644.5,3.78141749]
[1748962461017,1.1521,2645.4,2644.0,0.37597449]
[1748962461230,1.1521,2645.4,2643.8,3.78240004]
[1748962461370,1.1521,2645.4,2644.3,3.78171116]
[1748962461740,1.1521,2645.4,2643.9,12.13102357]
[1748962461856,0.31221,2645.5,2643.9,12.13102357]
[1748962461857,1.1427,2645.2,2644.3,3.78168304]
[1748962462057,1.1427,2645.2,2645.0,3.78058866]
[1748962462287,1.1427,2645.2,2644.3,3.78168304]
[1748962462489,1.45397,2645.2,2644.9,3.78077061]
[1748962462662,1.45397,2645.2,2645.0,3.78065313]
[1748962463101,1.45397,2645.2,2644.7,3.78111687]
[1748962463286,1.45397,2645.2,2644.3,8.3781683]
[1748962463486,1.45397,2645.2,2644.7,3.78101721]
[1748962463686,0.342397,2645.1,2644.8,3.78087276]
[1748962463884,0.342397,2645.1,2644.3,0.3781683]
[1748962463885,0.342397,2645.1,2644.9,3.78085574]
[1748962464089,1.45397,2645.2,2645.0,3.78062213]
[1748962464286,1.45397,2645.2,2644.4,3.78155404]
[1748962464596,1.45397,2645.2,2645.0,3.78069816]
[1748962464783,1.1427,2645.2,2645.1,3.7805754]
[1748962464998,0.02,2645.9,2645.1,3.7805754]
[1748962465189,3.1864,2645.8,2645.4,3.78006564]
[1748962465519,3.1864,2645.8,2645.0,3.78069458]
[1748962465520,1.1216,2645.7,2644.6,8.0]
[1748962465668,1.1216,2645.5,2645.1,3.7805729]
[1748962465862,1.1216,2645.5,2644.7,0.8]
[1748962465863,1.1216,2645.5,2645.4,3.78014666]
[1748962466069,1.1216,2645.5,2645.3,3.78023168]
[1748962466671,1.1216,2645.5,2645.2,3.78037114]
[1748962466880,1.1216,2645.5,2645.1,3.78051115]
[1748962467072,1.1216,2645.5,2645.0,3.78064068]
[1748962467410,1.1216,2645.5,2645.4,3.78014666]
[1748962467976,1.1216,2645.5,2645.3,3.78020691]
[1748962468177,1.1216,2645.5,2644.4,8.58552536]
[1748962468428,1.1216,2645.5,2644.4,0.58552536]
[1748962468633,1.1216,2645.5,2644.9,3.78079767]
[1748962468970,1.1216,2645.5,2645.1,3.78050663]
[1748962469209,1.1216,2645.5,2645.2,3.78041009]
[1748962469442,1.1216,2645.5,2644.9,3.78074423]
[1748962469443,3.0916,2645.5,2644.9,3.78074423]
[1748962469619,4.07926,2645.5,2644.9,3.78074423]
[1748962469819,4.07926,2645.5,2645.0,3.78069683]
[1748962470020,4.07926,2645.5,2644.9,3.78078154]
[1748962470232,1.1839,2645.4,2644.8,3.78093607]
[1748962470439,1.1839,2645.4,2644.9,3.78084783]
[1748962470626,1.598056,2645.4,2644.5,8.0]
[1748962470852,1.97,2645.3,2644.5,8.0]
[1748962471009,1.97,2645.3,2644.6,3.78129017]
[1748962471208,1.97,2645.3,2645.0,3.78062695]
[1748962471409,1.1839,2645.4,2645.0,3.78062695]
[1748962471636,3.1539,2645.4,2644.5,8.0]
[1748962471910,3.1539,2645.4,2644.9,3.7808425]
[1748962472110,3.1539,2645.4,2644.5,11.78140212]
[1748962472465,3.1539,2645.4,2644.6,3.78129017]
[1748962472672,1.1325,2645.3,2644.7,3.7811472]
[1748962473173,1.1325,2645.3,2644.7,3.78107971]
[1748962473645,1.1325,2645.3,2644.0,3.83403908]
[1748962473646,0.31025,2645.2,2644.4,3.78153878]
[1748962473968,1.1764,2645.1,2644.0,12.41953685]
[1748962474114,7.9554,2645.1,2644.8,3.7809177]
[1748962474508,7.9554,2645.1,2644.7,3.7810662]
[1748962474948,1.1764,2645.1,2644.8,3.7809671]
[1748962475144,1.966,2645.0,2644.8,3.78091223]
[1748962475556,1.966,2645.0,2644.5,3.78134632]
[1748962475949,1.966,2645.0,2644.5,3.78138376]
[1748962476252,1.966,2645.0,2644.6,3.78122453]
[1748962477275,0.99144,2645.0,2644.5,3.78134746]
[1748962477445,1.966,2644.9,2644.4,3.78154894]
[1748962477835,1.1308,2644.8,2644.3,3.78171469]
[1748962478036,1.1308,2644.8,2644.2,3.78179377]
[1748962478237,1.1308,2644.8,2644.3,3.78171218]
[1748962478541,1.1308,2644.8,2643.6,4.36821091]
[1748962478735,9.98765851,2644.9,2643.6,4.36821091]
[1748962478736,1.1717,2644.6,2643.7,8.43682109]
[1748962478954,1.1717,2644.6,2643.7,0.43682109]
[1748962479472,1.1717,2644.6,2644.2,3.78182389]
[1748962479473,1.966,2644.5,2644.2,3.78182389]
[1748962479678,1.1717,2644.4,2643.7,0.37292002]
[1748962479833,1.1717,2644.4,2643.6,3.78272053]
[1748962480041,1.1824,2644.2,2643.3,0.58552536]
[1748962480281,3.1484,2644.2,2643.3,16.60718387]
[1748962480596,1.1824,2644.2,2643.9,3.78217446]
[1748962480936,1.1824,2644.2,2643.8,3.78235086]
[1748962481136,1.1824,2644.2,2643.5,3.78285754]
[1748962481343,1.1824,2644.2,2643.3,4.16883104]
[1748962481647,1.1824,2644.2,2643.4,3.78290918]
[1748962481870,1.1824,2644.2,2643.3,3.78312452]
[1748962482071,1.1824,2644.2,2643.2,3.78323531]
[1748962482475,1.1824,2644.2,2643.4,3.78294695]
[1748962482671,1.1824,2644.2,2643.6,3.7827021]
[1748962482972,1.1824,2644.2,2643.4,3.78294695]
[1748962482973,1.1824,2644.2,2643.8,3.78236646]
[1748962483313,3.1494,2644.2,2643.8,3.78236495]
[1748962483488,3.1494,2644.2,2643.8,3.78233193]
[1748962483489,4.13844,2644.2,2643.8,3.78233193]
[1748962483690,4.13844,2644.2,2643.8,3.78235242]
[1748962484560,4.13844,2644.2,2643.7,3.78250861]
[1748962484782,4.13844,2644.2,2643.8,3.78233841]
[1748962484990,4.13844,2644.2,2643.2,3.78329297]
[1748962485283,1.1824,2644.2,2644.0,3.78201212]
[1748962485498,1.1824,2644.2,2643.3,11.85667652]
[1748962485762,1.1824,2644.2,2643.7,3.78245783]
[1748962486494,1.1824,2644.2,2643.8,3.78243047]
[1748962486804,1.1824,2644.2,2643.7,3.78254298]
[1748962487095,2.17094,2644.2,2643.5,3.78285452]
[1748962487471,2.17094,2644.2,2643.8,3.78237044]
[1748962487798,2.17094,2644.2,2643.6,3.7826336]
[1748962487799,1.967,2644.1,2643.7,3.78250194]
[1748962487961,1.967,2644.1,2643.8,3.78242806]
[1748962488160,1.967,2644.1,2643.7,3.78249906]
[1748962488606,1.967,2644.1,2643.6,3.78265361]
[1748962488777,1.967,2644.1,2643.7,3.78250723]
[1748962488973,2.95484,2644.1,2643.6,3.78262553]
[1748962489178,2.95484,2644.1,2643.8,3.78229943]
[1748962489396,7.9114,2644.2,2643.4,3.7829785]
[1748962489397,1.1824,2644.2,2643.4,3.7829785]
[1748962489563,1.1824,2644.2,2644.1,3.78200521]
[1748962490062,1.1824,2644.2,2643.9,3.78223196]
[1748962490501,1.1824,2644.2,2643.3,0.38469677]
[1748962490712,1.1824,2644.2,2643.4,3.78300673]
[1748962490877,1.1824,2644.2,2643.8,3.7823134]
[1748962491081,1.1824,2644.2,2643.9,3.78229085]
[1748962491281,3.1494,2644.2,2643.9,3.78229085]
[1748962491609,3.1494,2644.2,2643.9,3.78229021]
[1748962492009,3.1494,2644.2,2643.6,3.78261316]
[1748962492329,0.31494,2644.1,2643.6,3.78261316]
[1748962492723,0.31494,2644.1,2643.5,3.78279421]
[1748962492945,0.31494,2644.1,2643.1,0.02]
[1748962493131,1.2285,2644.0,2643.1,0.02]
[1748962493283,1.2285,2644.0,2643.1,3.80335985]
[1748962493487,1.2285,2644.0,2643.2,3.78328385]
[1748962494101,1.2285,2644.0,2643.5,3.78284445]
[1748962494301,1.967,2643.9,2643.2,3.78329297]
[1748962494516,1.967,2643.9,2643.7,3.78245994]
[1748962495235,1.2285,2644.0,2643.7,3.78255347]
[1748962495526,1.2285,2644.0,2643.7,3.7825057]
[1748962496026,1.2285,2644.0,2643.6,3.78261129]
[1748962497104,1.2285,2644.0,2643.5,3.78285823]
[1748962497299,1.2285,2644.0,2643.6,3.78260648]
[1748962497528,1.2285,2644.0,2643.6,3.78271272]
[1748962497710,1.2285,2644.0,2643.5,3.78279029]
[1748962498023,1.2285,2644.0,2643.3,3.78312694]
[1748962498024,1.54805,2644.0,2643.3,3.78312694]
[1748962498230,1.54805,2644.0,2643.3,3.78308473]
[1748962498391,1.54805,2644.0,2643.4,3.78299551]
[1748962498585,1.54805,2644.0,2643.1,0.02]
[1748962498787,1.1854,2644.3,2644.2,3.78186218]
[1748962499220,1.1854,2644.3,2643.5,8.0]
[1748962499606,1.1854,2644.3,2643.8,3.7823536]
[1748962499926,1.1854,2644.3,2643.5,8.0]
[1748962500091,1.1854,2644.3,2644.1,3.78192992]
[1748962500295,1.1854,2644.3,2644.2,3.78186218]
[1748962500662,1.1854,2644.3,2644.1,3.78198232]
[1748962500663,1.2657,2644.6,2644.4,3.78152747]
[1748962500929,1.2657,2644.6,2644.5,3.78143316]
[1748962501305,1.2459,2644.9,2644.1,3.78192654]
[1748962501500,1.2459,2644.9,2644.7,3.7810904]
[1748962501687,1.2459,2644.9,2644.6,3.78121996]
[1748962502092,1.1667,2645.2,2644.3,0.37460077]
[1748962502292,1.1667,2645.2,2645.1,3.7805754]
[1748962502503,1.1667,2645.8,2645.2,3.78042739]
[1748962502710,1.1667,2645.8,2644.8,3.78095652]
[1748962502961,0.31037,2645.7,2645.3,3.78028533]
[1748962503102,0.31037,2645.7,2645.2,3.78041478]
[1748962503438,0.31037,2645.7,2645.2,3.78035074]
[1748962503609,0.31037,2645.7,2645.3,3.78022494]
[1748962504429,0.31037,2645.7,2645.2,3.78036244]
[1748962504611,0.31037,2645.7,2645.3,3.78028728]
[1748962504811,0.31037,2645.7,2645.3,3.78028957]
[1748962504999,0.31037,2645.7,2645.0,3.7807123]
[1748962505197,0.31037,2645.7,2644.8,0.39228565]
[1748962505495,1.1667,2645.8,2644.8,0.39228565]
[1748962505496,1.1667,2645.8,2644.8,8.41394416]
[1748962505693,1.1667,2645.8,2645.5,3.77993651]
[1748962505893,1.1667,2645.8,2645.6,3.77977417]
[1748962506095,1.1667,2645.8,2645.6,3.77973076]
[1748962506332,1.1667,2645.8,2645.6,3.77983514]
[1748962506707,0.02,2645.9,2645.7,3.77971803]
[1748962506947,0.02,2645.9,2645.8,3.77957517]
[1748962508738,0.02,2645.9,2645.7,3.77964991]
[1748962509076,0.02,2645.9,2645.3,3.78028957]
[1748962509232,0.02,2645.9,2645.2,0.1419]
[1748962509233,0.02,2645.9,2645.8,3.77957517]
[1748962509644,0.02,2645.9,2645.8,16.75228517]
[1748962509939,0.01415417,2646.1,2646.0,3.77928949]
[1748962511161,0.01415417,2646.1,2645.6,8.1419]
[1748962511353,0.01415417,2646.1,2645.4,4.17233486]
[1748962511666,0.01415417,2646.1,2645.9,3.77938593]
[1748962511873,0.01415417,2646.1,2645.5,8.63412716]
[1748962511874,0.01415417,2646.1,2645.6,3.7798609]
[1748962512033,0.01415417,2646.1,2646.0,3.77928949]
[1748962512236,0.01415417,2646.1,2646.0,3.92118949]
[1748962512451,0.13742615,2646.9,2646.0,8.1419]
[1748962512786,0.13742615,2646.9,2646.4,3.77857772]
[1748962512947,0.13742615,2646.9,2646.1,0.39228565]
[1748962513288,0.13742615,2646.9,2646.8,3.77814719]
[1748962513475,0.13742615,2646.9,2646.6,3.77836034]
[1748962513672,0.13742615,2646.9,2646.7,3.77820754]
[1748962514187,0.13742615,2646.9,2646.1,0.39228565]
[1748962514356,0.13742615,2646.9,2646.4,3.77868804]
[1748962514560,0.13742615,2646.9,2646.2,0.39221896]
[1748962514561,0.13742615,2646.9,2646.8,3.77814719]
[1748962514764,0.44752175,2649.3,2648.8,3.77529447]
[1748962515149,0.34579935,2649.9,2648.8,3.77529447]
[1748962515150,0.34579935,2649.9,2649.8,11.77386972]
[1748962515374,0.34579935,2649.9,2649.8,12.32386972]
[1748962515607,0.02,2650.9,2650.8,3.77244605]
[1748962515912,0.02,2650.9,2650.8,14.07144605]
[1748962516064,5.6,2651.4,2651.3,3.77173462]
[1748962516251,5.6,2651.4,2651.3,11.77173462]
[1748962516456,5.80357291,2651.4,2650.7,8.02165851]
[1748962516679,0.20357291,2651.3,2650.9,3.77230374]
[1748962516882,0.20357291,2651.3,2651.2,3.77187688]
[1748962517397,0.20357291,2651.3,2649.4,1.17570273]
[1748962517398,2.633,2651.8,2650.3,3.77309594]
[1748962517552,1.1816,2651.9,2650.5,3.77287103]
[1748962517890,2.633,2651.8,2650.6,0.37280353]
[1748962518092,8.38146,2651.7,2650.7,3.77247349]
[1748962518404,8.38146,2651.7,2649.9,3.77372731]
[1748962518405,17.1318516,2651.7,2649.9,3.77372731]
[1748962518555,17.1318516,2651.7,2649.5,8.7503916]
[1748962518556,0.38146,2651.7,2650.5,8.7503916]
[1748962518888,0.02,2651.9,2651.8,3.77102345]
[1748962519301,0.02,2651.9,2650.5,4.556468]
[1748962519585,0.02,2651.9,2650.9,3.77230374]
[1748962519785,0.02,2651.9,2651.7,3.77115686]
[1748962519997,0.02,2651.9,2651.4,3.77148695]
[1748962520196,0.02,2651.9,2651.4,0.75432895]
[1748962520350,0.04689706,2652.9,2651.4,0.75432895]
[1748962520351,0.04689706,2652.9,2652.5,3.77002582]
[1748962520546,0.04689706,2652.9,2652.8,3.76960193]
[1748962521855,0.04689706,2652.9,2652.7,3.7696995]
[1748962522084,0.04689706,2652.9,2651.6,13.77130788]
[1748962522417,2.728,2652.8,2651.7,0.66430282]
[1748962522620,2.728,2652.8,2649.8,1.84164063]
[1748962522621,5.4,2654.7,2653.3,1.89051602]
[1748962522834,5.4,2654.7,2654.6,3.76704588]
[1748962523050,1.1838,2654.6,2651.4,3.068]
[1748962523177,1.1838,2654.6,2652.5,0.51]
[1748962523378,1.16,2654.5,2651.6,3.77130788]
[1748962523618,1.16,2654.5,2650.8,3.155]
[1748962523619,1.16,2653.9,2651.9,3.77088125]
[1748962523826,1.16,2653.9,2651.8,2.45715]
[1748962523827,3.155,2653.8,2651.8,2.45715]
[1748962524007,1.16,2653.6,2650.2,3.77330012]
[1748962524207,1.16,2653.4,2650.3,8.86597664]
[1748962524407,1.16,2653.4,2651.4,3.77159236]
[1748962524593,0.9711,2653.3,2651.9,12.52126228]
[1748962524926,9.16,2653.7,2652.0,0.31477473]
[1748962525098,1.16,2653.2,2652.1,0.02]
[1748962525417,8.0,2653.0,2652.2,0.314751]
[1748962526320,1.16,2652.7,2652.2,0.314751]
[1748962526996,1.16,2652.7,2652.1,0.02]
[1748962527198,1.16,2652.5,2652.2,0.314751]
[1748962527497,8.0,2652.3,2651.2,3.77178685]
[1748962527693,8.0,2652.3,2651.1,3.79199349]
[1748962527881,8.0,2652.3,2651.2,3.77187688]
[1748962528087,8.0,2652.3,2651.1,0.02]
[1748962528321,10.6615,2652.2,2651.1,0.02]
[1748962528620,9.2304,2652.1,2651.1,0.02]
[1748962528780,3.154,2652.0,2651.1,0.02]
[1748962528982,1.1796,2651.8,2651.1,0.02]
[1748962529295,8.489,2651.7,2651.1,0.02]
[1748962529631,0.96686,2651.6,2651.1,0.02]